[Event "Late-Titled-Tuesday-Blitz-May-28-2024"]
[Site "Chess.com"]
[Date "2024.05.28"]
[Round "5"]
[White "Valiyev_Shahin"]
[Black "laskakid"]
[Result "1-0"]
[WhiteElo "2538"]
[BlackElo "2356"]
[TimeControl "180+1"]
[EndTime "14:56:52 PDT"]
[Termination "Valiyev_Shahin won on time"]

1. e4 {[%clk 0:02:58.5]} 1... d6 {[%clk 0:03:00.3]} 2. d4 {[%clk 0:02:58.1]}
2... Nf6 {[%clk 0:03:00.9]} 3. Nc3 {[%clk 0:02:56.7]} 3... e5 {[%clk 0:03:01.2]}
4. Nf3 {[%clk 0:02:57.2]} 4... Nbd7 {[%clk 0:03:00.2]} 5. Bc4 {[%clk 0:02:55.3]}
5... Be7 {[%clk 0:03:00.5]} 6. O-O {[%clk 0:02:54.3]} 6... O-O {[%clk
0:03:00.5]} 7. a4 {[%clk 0:02:53.8]} 7... c6 {[%clk 0:03:00.7]} 8. h3 {[%clk
0:02:52.6]} 8... h6 {[%clk 0:03:00.2]} 9. Ba2 {[%clk 0:02:52.6]} 9... Re8 {[%clk
0:02:59.9]} 10. Re1 {[%clk 0:02:53.3]} 10... a5 {[%clk 0:02:59.2]} 11. Be3
{[%clk 0:02:49.5]} 11... exd4 {[%clk 0:02:58.5]} 12. Nxd4 {[%clk 0:02:47.2]}
12... Bf8 {[%clk 0:02:57]} 13. f3 {[%clk 0:02:39.2]} 13... Nc5 {[%clk
0:02:39.3]} 14. Qd2 {[%clk 0:02:33.4]} 14... d5 {[%clk 0:02:36.5]} 15. exd5
{[%clk 0:02:32.8]} 15... cxd5 {[%clk 0:02:36.8]} 16. Rad1 {[%clk 0:02:26]} 16...
Bd7 {[%clk 0:02:36.7]} 17. Ndb5 {[%clk 0:02:25.7]} 17... Nxa4 {[%clk 0:02:26]}
18. Nxa4 {[%clk 0:02:18.3]} 18... Bxb5 {[%clk 0:02:26.1]} 19. Nb6 {[%clk
0:02:18.8]} 19... Ra6 {[%clk 0:02:17.9]} 20. Nxd5 {[%clk 0:02:05.8]} 20... Rd6
{[%clk 0:01:50.7]} 21. c4 {[%clk 0:01:59.4]} 21... Bc6 {[%clk 0:01:39.1]} 22.
Bf4 {[%clk 0:01:57.8]} 22... Rd7 {[%clk 0:01:37.2]} 23. Rxe8 {[%clk 0:01:31.8]}
23... Nxe8 {[%clk 0:01:35.7]} 24. Qc3 {[%clk 0:01:20.6]} 24... Bb4 {[%clk
0:01:20.5]} 25. Qc2 {[%clk 0:01:17.2]} 25... Nf6 {[%clk 0:01:12]} 26. Qf5 {[%clk
0:01:13.5]} 26... Nxd5 {[%clk 0:01:00]} 27. cxd5 {[%clk 0:01:14.4]} 27... Ba4
{[%clk 0:01:00.1]} 28. b3 {[%clk 0:01:07.1]} 28... Bc6 {[%clk 0:00:53.6]} 29.
Bb1 {[%clk 0:00:48.3]} 29... g6 {[%clk 0:00:40.8]} 30. Qg4 {[%clk 0:00:46.6]}
30... h5 {[%clk 0:00:36.4]} 31. Qg3 {[%clk 0:00:35.5]} 31... Bxd5 {[%clk
0:00:30.5]} 32. Bxg6 {[%clk 0:00:27.7]} 32... fxg6 {[%clk 0:00:16.2]} 33. Qxg6+
{[%clk 0:00:28.6]} 33... Rg7 {[%clk 0:00:15.6]} 34. Qxh5 {[%clk 0:00:26.5]}
34... Qb6+ {[%clk 0:00:10.3]} 35. Kh2 {[%clk 0:00:21.3]} 35... Bf7 {[%clk
0:00:10.4]} 36. Qh4 {[%clk 0:00:18.5]} 36... Qg6 {[%clk 0:00:08.3]} 37. Rd8+
{[%clk 0:00:17.7]} 37... Bf8 {[%clk 0:00:08.5]} 38. Qf2 {[%clk 0:00:07.2]} 38...
Qf6 {[%clk 0:00:06.6]} 39. Qd4 {[%clk 0:00:02.6]} 39... Qxd4 {[%clk 0:00:05.5]}
40. Rxd4 {[%clk 0:00:03.5]} 40... Bb4 {[%clk 0:00:03.7]} 41. Be5 {[%clk
0:00:02.8]} 41... Rg6 {[%clk 0:00:03.3]} 42. Rd8+ {[%clk 0:00:02.9]} 42... Bf8
{[%clk 0:00:02.3]} 43. f4 {[%clk 0:00:02.8]} 43... Bxb3 {[%clk 0:00:02.3]} 44.
f5 {[%clk 0:00:03]} 44... Rc6 {[%clk 0:00:01.8]} 45. f6 {[%clk 0:00:02.9]} 45...
Kf7 {[%clk 0:00:01.7]} 46. Rd7+ {[%clk 0:00:02.9]} 46... Ke6 {[%clk 0:00:01.6]}
47. Rd8 {[%clk 0:00:02.3]} 47... Kxe5 {[%clk 0:00:01.1]} 48. Rxf8 {[%clk
0:00:02.4]} 48... Rxf6 {[%clk 0:00:01.4]} 49. Re8+ {[%clk 0:00:03.3]} 49... Be6
{[%clk 0:00:01.1]} 50. Rb8 {[%clk 0:00:04.2]} 50... Rf7 {[%clk 0:00:01]} 51. Ra8
{[%clk 0:00:04.5]} 51... Rc7 {[%clk 0:00:01.2]} 52. Rxa5+ {[%clk 0:00:05]} 1-0

[Event "Late-Titled-Tuesday-Blitz-May-28-2024"]
[Site "Chess.com"]
[Date "2024.05.28"]
[Round "5"]
[White "CixPer1968"]
[Black "DonPreuss"]
[Result "1/2-1/2"]
[WhiteElo "2158"]
[BlackElo "2289"]
[TimeControl "180+1"]
[EndTime "14:56:54 PDT"]
[Termination "Game drawn - insufficient material"]

1. d4 {[%clk 0:02:57.8]} 1... Nf6 {[%clk 0:02:52.9]} 2. c4 {[%clk 0:02:57.6]}
2... e6 {[%clk 0:02:52.8]} 3. Nf3 {[%clk 0:02:57.4]} 3... Bb4+ {[%clk
0:02:51.9]} 4. Nbd2 {[%clk 0:02:55.7]} 4... O-O {[%clk 0:02:50.8]} 5. g3 {[%clk
0:02:55.8]} 5... c5 {[%clk 0:02:47.3]} 6. Bg2 {[%clk 0:02:52.4]} 6... Nc6 {[%clk
0:02:45.5]} 7. a3 {[%clk 0:02:50.3]} 7... Bxd2+ {[%clk 0:02:45.4]} 8. Qxd2
{[%clk 0:02:50.1]} 8... cxd4 {[%clk 0:02:44.7]} 9. Nxd4 {[%clk 0:02:49.1]} 9...
d5 {[%clk 0:02:43.1]} 10. cxd5 {[%clk 0:02:47.8]} 10... exd5 {[%clk 0:02:39.6]}
11. O-O {[%clk 0:02:43.3]} 11... Qb6 {[%clk 0:02:36.2]} 12. Nxc6 {[%clk
0:02:41.7]} 12... bxc6 {[%clk 0:02:35.8]} 13. b4 {[%clk 0:02:41.4]} 13... Re8
{[%clk 0:02:32.6]} 14. Bb2 {[%clk 0:02:40.6]} 14... Ne4 {[%clk 0:02:32.4]} 15.
Qd4 {[%clk 0:02:34.2]} 15... Qxd4 {[%clk 0:02:25.9]} 16. Bxd4 {[%clk 0:02:35.1]}
16... Nd2 {[%clk 0:02:22.8]} 17. Rfe1 {[%clk 0:02:21.3]} 17... Nb3 {[%clk
0:02:20.6]} 18. Rad1 {[%clk 0:02:21.2]} 18... Nxd4 {[%clk 0:02:18.3]} 19. Rxd4
{[%clk 0:02:20.5]} 19... Ba6 {[%clk 0:02:16.3]} 20. e3 {[%clk 0:02:19.2]} 20...
Bb5 {[%clk 0:02:10.4]} 21. Rc1 {[%clk 0:02:13.5]} 21... a5 {[%clk 0:02:06.4]}
22. Bf1 {[%clk 0:02:12.2]} 22... Bxf1 {[%clk 0:02:01]} 23. Kxf1 {[%clk 0:02:12]}
23... Re6 {[%clk 0:01:55]} 24. b5 {[%clk 0:02:05.8]} 24... cxb5 {[%clk
0:01:53.4]} 25. Rxd5 {[%clk 0:02:04.4]} 25... Rb6 {[%clk 0:01:48.9]} 26. Rb1
{[%clk 0:01:54.6]} 26... Rab8 {[%clk 0:01:47.8]} 27. Ke2 {[%clk 0:01:50.1]}
27... Kf8 {[%clk 0:01:47.2]} 28. Kd3 {[%clk 0:01:43.2]} 28... Ke7 {[%clk
0:01:45.3]} 29. e4 {[%clk 0:01:40]} 29... Ke6 {[%clk 0:01:45]} 30. f4 {[%clk
0:01:38.9]} 30... f5 {[%clk 0:01:43.1]} 31. Rxf5 {[%clk 0:01:36.7]} 31... Rd8+
{[%clk 0:01:42.4]} 32. Ke3 {[%clk 0:01:33.2]} 32... b4 {[%clk 0:01:35.4]} 33.
Re5+ {[%clk 0:01:25]} 33... Kf6 {[%clk 0:01:34.4]} 34. axb4 {[%clk 0:01:17.8]}
34... axb4 {[%clk 0:01:32]} 35. Rc5 {[%clk 0:01:07.8]} 35... Ra8 {[%clk
0:01:27.5]} 36. Kd4 {[%clk 0:01:02.3]} 36... Ra2 {[%clk 0:01:24.6]} 37. h4
{[%clk 0:00:50.6]} 37... Rd2+ {[%clk 0:01:17.6]} 38. Kc4 {[%clk 0:00:47.6]}
38... Rc2+ {[%clk 0:01:03.5]} 39. Kd5 {[%clk 0:00:44]} 39... Rg2 {[%clk
0:00:59.2]} 40. Rc6+ {[%clk 0:00:29.9]} 40... Rxc6 {[%clk 0:00:58.8]} 41. Kxc6
{[%clk 0:00:30.6]} 41... Rxg3 {[%clk 0:00:58.4]} 42. Rxb4 {[%clk 0:00:31.2]}
42... Rg4 {[%clk 0:00:58.7]} 43. e5+ {[%clk 0:00:29.9]} 43... Kf5 {[%clk
0:00:52]} 44. Kd6 {[%clk 0:00:29.9]} 44... Rg2 {[%clk 0:00:41.9]} 45. Rd4 {[%clk
0:00:26.4]} 45... Ra2 {[%clk 0:00:39.1]} 46. Ke7 {[%clk 0:00:23]} 46... Ra7+
{[%clk 0:00:36.2]} 47. Rd7 {[%clk 0:00:20.2]} 47... Ra4 {[%clk 0:00:35.7]} 48.
Kf7 {[%clk 0:00:16.7]} 48... Rxf4 {[%clk 0:00:19.6]} 49. Kxg7 {[%clk 0:00:14.6]}
49... Kxe5 {[%clk 0:00:18.4]} 50. Kxh7 {[%clk 0:00:14.7]} 50... Rxh4+ {[%clk
0:00:18.6]} 51. Kg6 {[%clk 0:00:15.1]} 51... Rg4+ {[%clk 0:00:18.8]} 52. Kf7
{[%clk 0:00:14.9]} 52... Rf4+ {[%clk 0:00:18.7]} 53. Kg7 {[%clk 0:00:15.1]}
53... Rg4+ {[%clk 0:00:19.1]} 54. Kf7 {[%clk 0:00:15.5]} 54... Rf4+ {[%clk
0:00:19]} 55. Kg7 {[%clk 0:00:15.6]} 55... Ke6 {[%clk 0:00:18.9]} 56. Ra7 {[%clk
0:00:15]} 56... Rg4+ {[%clk 0:00:18.3]} 57. Kh6 {[%clk 0:00:13.9]} 57... Rf4
{[%clk 0:00:17.7]} 58. Kg6 {[%clk 0:00:13.9]} 58... Rg4+ {[%clk 0:00:17.4]} 59.
Kh5 {[%clk 0:00:14.1]} 59... Rd4 {[%clk 0:00:17]} 60. Ra6+ {[%clk 0:00:13.8]}
60... Ke5 {[%clk 0:00:16.9]} 61. Kg5 {[%clk 0:00:13.7]} 61... Ke4 {[%clk
0:00:13.1]} 62. Ra5 {[%clk 0:00:13.3]} 62... Rd5+ {[%clk 0:00:13.1]} 63. Rxd5
{[%clk 0:00:12.8]} 63... Kxd5 {[%clk 0:00:14]} 1/2-1/2

[Event "Late-Titled-Tuesday-Blitz-May-28-2024"]
[Site "Chess.com"]
[Date "2024.05.28"]
[Round "5"]
[White "Grischuk"]
[Black "Jospem"]
[Result "1/2-1/2"]
[WhiteElo "3137"]
[BlackElo "3025"]
[TimeControl "180+1"]
[EndTime "14:56:55 PDT"]
[Termination "Game drawn by repetition"]

1. d4 {[%clk 0:03:00.9]} 1... Nf6 {[%clk 0:02:57.4]} 2. c4 {[%clk 0:03:01.4]}
2... e6 {[%clk 0:02:57.8]} 3. Nf3 {[%clk 0:03:01.9]} 3... Bb4+ {[%clk
0:02:58.3]} 4. Nbd2 {[%clk 0:03:02]} 4... O-O {[%clk 0:02:58.4]} 5. a3 {[%clk
0:03:01.9]} 5... Be7 {[%clk 0:02:59.1]} 6. e4 {[%clk 0:03:01.9]} 6... d6 {[%clk
0:03:00]} 7. Be2 {[%clk 0:03:02.2]} 7... Nfd7 {[%clk 0:03:00.7]} 8. b4 {[%clk
0:02:58.4]} 8... e5 {[%clk 0:03:01.2]} 9. d5 {[%clk 0:02:57.9]} 9... a5 {[%clk
0:03:01.2]} 10. Bb2 {[%clk 0:02:57.2]} 10... c6 {[%clk 0:03:00]} 11. O-O {[%clk
0:02:42.7]} 11... Na6 {[%clk 0:02:59.8]} 12. Qb3 {[%clk 0:02:34]} 12... c5
{[%clk 0:02:55.2]} 13. b5 {[%clk 0:02:32.5]} 13... Nc7 {[%clk 0:02:55.7]} 14.
Rfe1 {[%clk 0:02:29.9]} 14... Nb6 {[%clk 0:02:55.3]} 15. Nf1 {[%clk 0:02:23.8]}
15... f5 {[%clk 0:02:46.9]} 16. exf5 {[%clk 0:02:24.1]} 16... Bxf5 {[%clk
0:02:47.8]} 17. Ng3 {[%clk 0:02:22.6]} 17... Bg6 {[%clk 0:02:48.2]} 18. Rad1
{[%clk 0:02:07.6]} 18... Qd7 {[%clk 0:02:30.1]} 19. Bd3 {[%clk 0:02:02.5]} 19...
Bxd3 {[%clk 0:01:42.7]} 20. Qxd3 {[%clk 0:02:03.4]} 20... Ne8 {[%clk 0:01:39.1]}
21. Ne4 {[%clk 0:01:36.6]} 21... Qf5 {[%clk 0:01:26.2]} 22. Qe2 {[%clk
0:01:24.4]} 22... h6 {[%clk 0:01:04.4]} 23. h3 {[%clk 0:01:12.1]} 23... Nf6
{[%clk 0:01:04.2]} 24. Ng3 {[%clk 0:01:11.9]} 24... Qh7 {[%clk 0:00:57.2]} 25.
Rc1 {[%clk 0:00:43.2]} 25... Nfd7 {[%clk 0:00:41.4]} 26. Ne4 {[%clk 0:00:29.4]}
26... Rf7 {[%clk 0:00:37.4]} 27. Rc3 {[%clk 0:00:27.2]} 27... Raf8 {[%clk
0:00:35.9]} 28. Re3 {[%clk 0:00:26.2]} 28... Qg6 {[%clk 0:00:30.6]} 29. Kh2
{[%clk 0:00:22.9]} 29... Rf4 {[%clk 0:00:24.4]} 30. Bc3 {[%clk 0:00:20.7]} 30...
a4 {[%clk 0:00:22.2]} 31. Ba5 {[%clk 0:00:20.3]} 31... Kh8 {[%clk 0:00:22.2]}
32. Bxb6 {[%clk 0:00:19.4]} 32... Nxb6 {[%clk 0:00:23.1]} 33. Nfd2 {[%clk
0:00:17.4]} 33... R4f7 {[%clk 0:00:20]} 34. Rg3 {[%clk 0:00:15.4]} 34... Qh7
{[%clk 0:00:19.1]} 35. Rf3 {[%clk 0:00:14.2]} 35... Qg6 {[%clk 0:00:14.6]} 36.
Rxf7 {[%clk 0:00:13.4]} 36... Qxf7 {[%clk 0:00:15.5]} 37. Kg1 {[%clk 0:00:10.6]}
37... Qe8 {[%clk 0:00:12.1]} 38. Rf1 {[%clk 0:00:10]} 38... Qg6 {[%clk
0:00:09.2]} 39. Qg4 {[%clk 0:00:06.7]} 39... Kh7 {[%clk 0:00:09.3]} 40. Qxg6+
{[%clk 0:00:04.4]} 40... Kxg6 {[%clk 0:00:10.2]} 41. g3 {[%clk 0:00:03.7]} 41...
Bg5 {[%clk 0:00:10.7]} 42. Nxg5 {[%clk 0:00:04]} 42... hxg5 {[%clk 0:00:11.2]}
43. Rc1 {[%clk 0:00:02.3]} 43... Kf5 {[%clk 0:00:10]} 44. Kf1 {[%clk 0:00:01.8]}
44... Rh8 {[%clk 0:00:03.5]} 45. Kg2 {[%clk 0:00:02.2]} 45... Re8 {[%clk
0:00:03]} 46. Re1 {[%clk 0:00:01.9]} 46... Kg6 {[%clk 0:00:02.6]} 47. Re4 {[%clk
0:00:01.7]} 47... Rf8 {[%clk 0:00:02.7]} 48. Re3 {[%clk 0:00:01.6]} 48... Re8
{[%clk 0:00:02.7]} 49. Re4 {[%clk 0:00:02.1]} 49... Rf8 {[%clk 0:00:02.8]} 50.
Rg4 {[%clk 0:00:02.4]} 50... Kh6 {[%clk 0:00:03.1]} 51. Re4 {[%clk 0:00:02.3]}
51... Re8 {[%clk 0:00:03.4]} 52. Re3 {[%clk 0:00:02.4]} 52... Kg6 {[%clk
0:00:03.4]} 53. Kf3 {[%clk 0:00:02.7]} 53... Rf8+ {[%clk 0:00:03.8]} 54. Kg2
{[%clk 0:00:03]} 54... Re8 {[%clk 0:00:04.1]} 1/2-1/2

[Event "Late-Titled-Tuesday-Blitz-May-28-2024"]
[Site "Chess.com"]
[Date "2024.05.28"]
[Round "5"]
[White "RaugintaBulba"]
[Black "Agustin_Meza"]
[Result "1/2-1/2"]
[WhiteElo "2424"]
[BlackElo "2181"]
[TimeControl "180+1"]
[EndTime "14:56:55 PDT"]
[Termination "Game drawn by repetition"]

1. d4 {[%clk 0:03:00.9]} 1... Nf6 {[%clk 0:02:58.2]} 2. c4 {[%clk 0:03:00]} 2...
g6 {[%clk 0:02:57.8]} 3. Nc3 {[%clk 0:02:59.3]} 3... Bg7 {[%clk 0:02:58.3]} 4.
e4 {[%clk 0:02:59.7]} 4... d6 {[%clk 0:02:58.7]} 5. Be3 {[%clk 0:03:00]} 5...
O-O {[%clk 0:02:58.6]} 6. h3 {[%clk 0:03:00.2]} 6... c5 {[%clk 0:02:51.9]} 7. d5
{[%clk 0:02:58]} 7... e6 {[%clk 0:02:51.2]} 8. Nf3 {[%clk 0:02:57.2]} 8... exd5
{[%clk 0:02:51.5]} 9. exd5 {[%clk 0:02:58.1]} 9... Re8 {[%clk 0:02:51]} 10. Bd3
{[%clk 0:02:57]} 10... Rxe3+ {[%clk 0:02:45.9]} 11. fxe3 {[%clk 0:02:57.9]}
11... Qe7 {[%clk 0:02:46.3]} 12. O-O {[%clk 0:02:55.1]} 12... Nfd7 {[%clk
0:02:41.1]} 13. e4 {[%clk 0:02:52]} 13... Ne5 {[%clk 0:02:40]} 14. Nxe5 {[%clk
0:02:52.3]} 14... Qxe5 {[%clk 0:02:37.8]} 15. Qf3 {[%clk 0:02:49]} 15... Qe7
{[%clk 0:02:32]} 16. Nb5 {[%clk 0:02:43]} 16... Nd7 {[%clk 0:02:30.9]} 17. Qf4
{[%clk 0:02:14.8]} 17... Ne5 {[%clk 0:02:27.6]} 18. Be2 {[%clk 0:02:14.1]} 18...
a6 {[%clk 0:02:22.8]} 19. Nc3 {[%clk 0:02:12.6]} 19... Bd7 {[%clk 0:02:21.5]}
20. a4 {[%clk 0:02:10.7]} 20... b6 {[%clk 0:02:19.3]} 21. Rac1 {[%clk 0:02:00]}
21... Rb8 {[%clk 0:02:16.2]} 22. b3 {[%clk 0:01:57.5]} 22... Qf8 {[%clk
0:02:05.8]} 23. g4 {[%clk 0:01:51.1]} 23... Qe7 {[%clk 0:01:49]} 24. Kg2 {[%clk
0:01:43.7]} 24... Qh4 {[%clk 0:01:38.2]} 25. Qg3 {[%clk 0:01:22.8]} 25... Qxg3+
{[%clk 0:01:28.6]} 26. Kxg3 {[%clk 0:01:22.4]} 26... Bh6 {[%clk 0:01:29.2]} 27.
Rc2 {[%clk 0:01:15.1]} 27... Be3 {[%clk 0:01:20.7]} 28. Nd1 {[%clk 0:00:49.6]}
28... Bd4 {[%clk 0:01:14.9]} 29. Nf2 {[%clk 0:00:35.5]} 29... b5 {[%clk
0:01:13.1]} 30. axb5 {[%clk 0:00:35.7]} 30... axb5 {[%clk 0:01:14]} 31. Nd3
{[%clk 0:00:31.1]} 31... bxc4 {[%clk 0:01:11.7]} 32. bxc4 {[%clk 0:00:30]} 32...
Rb3 {[%clk 0:01:06]} 33. Rd1 {[%clk 0:00:29.7]} 33... Ra3 {[%clk 0:00:57.7]} 34.
Kg2 {[%clk 0:00:26.9]} 34... Ba4 {[%clk 0:00:58]} 35. Nxe5 {[%clk 0:00:15.3]}
35... Bxc2 {[%clk 0:00:54.4]} 36. Rd2 {[%clk 0:00:12.3]} 36... Bxe4+ {[%clk
0:00:48.4]} 37. Bf3 {[%clk 0:00:10.7]} 37... Bxe5 {[%clk 0:00:24]} 38. Bxe4
{[%clk 0:00:10.9]} 38... Kg7 {[%clk 0:00:23.5]} 39. Bf3 {[%clk 0:00:10.3]} 39...
h6 {[%clk 0:00:23.1]} 40. Rf2 {[%clk 0:00:09.2]} 40... Rc3 {[%clk 0:00:22.5]}
41. Be2 {[%clk 0:00:09.7]} 41... Rc2 {[%clk 0:00:22.7]} 42. Kf1 {[%clk
0:00:08.4]} 42... Bd4 {[%clk 0:00:22.4]} 43. Rf3 {[%clk 0:00:06.3]} 43... Rc1+
{[%clk 0:00:22.2]} 44. Kg2 {[%clk 0:00:06.6]} 44... Rg1+ {[%clk 0:00:21.9]} 45.
Kh2 {[%clk 0:00:06.2]} 45... Re1 {[%clk 0:00:22.5]} 46. Bd3 {[%clk 0:00:06.1]}
46... Be5+ {[%clk 0:00:23]} 47. Kg2 {[%clk 0:00:06.4]} 47... Rd1 {[%clk
0:00:23.1]} 48. Kf2 {[%clk 0:00:05.2]} 48... Rh1 {[%clk 0:00:19.9]} 49. Ke3
{[%clk 0:00:04.4]} 49... f6 {[%clk 0:00:17.8]} 50. Ke2 {[%clk 0:00:04.5]} 50...
Rh2+ {[%clk 0:00:17.9]} 51. Ke3 {[%clk 0:00:04]} 51... Bd4+ {[%clk 0:00:17]} 52.
Kf4 {[%clk 0:00:03.3]} 52... Rd2 {[%clk 0:00:17.4]} 53. Ke4 {[%clk 0:00:03.2]}
53... Be5 {[%clk 0:00:17.6]} 54. Ke3 {[%clk 0:00:03.5]} 54... Rd1 {[%clk
0:00:16.7]} 55. Ke2 {[%clk 0:00:03.8]} 55... Ra1 {[%clk 0:00:16.7]} 56. Kd2
{[%clk 0:00:04.1]} 56... Ra2+ {[%clk 0:00:16.1]} 57. Ke3 {[%clk 0:00:04.6]}
57... Bd4+ {[%clk 0:00:15.7]} 58. Ke4 {[%clk 0:00:05.3]} 58... Ra3 {[%clk
0:00:16.3]} 59. Kf4 {[%clk 0:00:04.5]} 59... Be5+ {[%clk 0:00:16.8]} 60. Ke4
{[%clk 0:00:04.8]} 60... Bd4 {[%clk 0:00:17]} 61. Kf4 {[%clk 0:00:05.1]} 61...
Be5+ {[%clk 0:00:17.5]} 62. Ke4 {[%clk 0:00:05.6]} 62... Bd4 {[%clk 0:00:18]}
1/2-1/2

[Event "Late-Titled-Tuesday-Blitz-May-28-2024"]
[Site "Chess.com"]
[Date "2024.05.28"]
[Round "5"]
[White "ATM622"]
[Black "Eloist"]
[Result "1-0"]
[WhiteElo "2590"]
[BlackElo "2450"]
[TimeControl "180+1"]
[EndTime "14:57:00 PDT"]
[Termination "ATM622 won by resignation"]

1. d4 {[%clk 0:02:59.8]} 1... e6 {[%clk 0:03:00.4]} 2. c4 {[%clk 0:02:59.6]}
2... Nf6 {[%clk 0:03:00.7]} 3. g3 {[%clk 0:02:59.4]} 3... d5 {[%clk 0:02:59.5]}
4. Bg2 {[%clk 0:02:59.5]} 4... c5 {[%clk 0:02:59.7]} 5. cxd5 {[%clk 0:02:59.2]}
5... Nxd5 {[%clk 0:02:59.2]} 6. Nf3 {[%clk 0:02:56.9]} 6... cxd4 {[%clk
0:02:55.8]} 7. O-O {[%clk 0:02:56.3]} 7... Bc5 {[%clk 0:02:54.4]} 8. Nxd4 {[%clk
0:02:55.5]} 8... O-O {[%clk 0:02:54.5]} 9. a3 {[%clk 0:02:50.9]} 9... Bb6 {[%clk
0:02:51.9]} 10. b4 {[%clk 0:02:41.9]} 10... Nxb4 {[%clk 0:02:46.7]} 11. Bb2
{[%clk 0:02:15.1]} 11... N4c6 {[%clk 0:02:42.4]} 12. Nxc6 {[%clk 0:02:10.8]}
12... Nxc6 {[%clk 0:02:41.9]} 13. Qa4 {[%clk 0:02:10.4]} 13... Bd7 {[%clk
0:02:40.3]} 14. Qe4 {[%clk 0:01:44.4]} 14... Qe7 {[%clk 0:02:34.1]} 15. Nc3
{[%clk 0:01:39.6]} 15... Rac8 {[%clk 0:02:18.9]} 16. Rad1 {[%clk 0:01:36.5]}
16... Rfd8 {[%clk 0:02:17.9]} 17. h4 {[%clk 0:01:30.9]} 17... Be8 {[%clk
0:02:17.2]} 18. h5 {[%clk 0:01:28.7]} 18... h6 {[%clk 0:02:13.7]} 19. Na4 {[%clk
0:01:21.4]} 19... f5 {[%clk 0:02:10.6]} 20. Qb1 {[%clk 0:01:12.2]} 20... Bxh5
{[%clk 0:02:06.8]} 21. Nxb6 {[%clk 0:01:12.1]} 21... axb6 {[%clk 0:02:07]} 22.
f3 {[%clk 0:01:04.6]} 22... Qg5 {[%clk 0:02:01.3]} 23. Kf2 {[%clk 0:01:04.7]}
23... f4 {[%clk 0:01:59]} 24. g4 {[%clk 0:00:59.1]} 24... Qh4+ {[%clk
0:01:56.5]} 25. Kg1 {[%clk 0:00:58.9]} 25... Bf7 {[%clk 0:01:53.5]} 26. Qe4
{[%clk 0:00:56.3]} 26... e5 {[%clk 0:01:48.7]} 27. e3 {[%clk 0:00:39]} 27... Qg5
{[%clk 0:01:46.4]} 28. Bc1 {[%clk 0:00:34.1]} 28... fxe3 {[%clk 0:01:21.7]} 29.
Bxe3 {[%clk 0:00:34]} 29... Qf6 {[%clk 0:01:21.6]} 30. Bxb6 {[%clk 0:00:32.5]}
30... Rxd1 {[%clk 0:01:12.7]} 31. Rxd1 {[%clk 0:00:33.4]} 31... h5 {[%clk
0:01:05.5]} 32. Be3 {[%clk 0:00:26.3]} 32... Bg6 {[%clk 0:00:58.8]} 33. Qd5+
{[%clk 0:00:25.7]} 33... Bf7 {[%clk 0:00:55.6]} 34. Qe4 {[%clk 0:00:25.2]} 34...
Bg6 {[%clk 0:00:54.3]} 35. Qc4+ {[%clk 0:00:19.2]} 35... Bf7 {[%clk 0:00:54.2]}
36. Qb5 {[%clk 0:00:18.9]} 36... Nd4 {[%clk 0:00:49.3]} 37. Bxd4 {[%clk
0:00:13.5]} 37... exd4 {[%clk 0:00:49.2]} 38. Qxb7 {[%clk 0:00:13.6]} 38... Rc2
{[%clk 0:00:42.9]} 39. Qe4 {[%clk 0:00:13.1]} 39... Bg6 {[%clk 0:00:41.7]} 40.
Qxd4 {[%clk 0:00:12.6]} 40... Qe6 {[%clk 0:00:32.6]} 41. Kh1 {[%clk 0:00:07.5]}
41... Qe2 {[%clk 0:00:32.2]} 42. Rg1 {[%clk 0:00:07.7]} 42... Rd2 {[%clk
0:00:27.2]} 43. Qf4 {[%clk 0:00:06.6]} 43... hxg4 {[%clk 0:00:26]} 44. Qxg4
{[%clk 0:00:06.4]} 44... Ra2 {[%clk 0:00:24.8]} 45. Qxg6 {[%clk 0:00:06.1]}
45... Qf2 {[%clk 0:00:22.8]} 46. Qe8+ {[%clk 0:00:05.4]} 46... Kh7 {[%clk
0:00:22.6]} 47. Qh5+ {[%clk 0:00:05.9]} 47... Kg8 {[%clk 0:00:23]} 48. Qh2
{[%clk 0:00:06]} 48... Rxa3 {[%clk 0:00:20.1]} 49. Qb8+ {[%clk 0:00:06.2]} 49...
Kh7 {[%clk 0:00:19.6]} 50. Qh2+ {[%clk 0:00:06]} 50... Kg8 {[%clk 0:00:19.9]}
51. Rf1 {[%clk 0:00:06.4]} 51... Qd2 {[%clk 0:00:19.1]} 52. Bh3 {[%clk
0:00:04.6]} 52... Qd3 {[%clk 0:00:18.5]} 53. Qb8+ {[%clk 0:00:04.5]} 53... Kh7
{[%clk 0:00:17.3]} 54. Qg3 {[%clk 0:00:04.5]} 54... Ra2 {[%clk 0:00:13.7]} 55.
Rg1 {[%clk 0:00:04.8]} 55... Qd4 {[%clk 0:00:12.8]} 56. Bf5+ {[%clk 0:00:04.4]}
56... Kh8 {[%clk 0:00:12.1]} 57. Qh3+ {[%clk 0:00:04.4]} 57... Kg8 {[%clk
0:00:11.4]} 58. Be6+ {[%clk 0:00:04.7]} 58... Kf8 {[%clk 0:00:11.3]} 59. Bxa2
{[%clk 0:00:04.5]} 1-0